[Event "Titled Tuesday Blitz November 07 Early 2023"]
[White "Petersson, Kjell"]
[Black "Mohammadian,Mohammad"]
[WhiteFideId "1705148"]
[BlackFideId "12566055"]
[WhiteElo "2131"]
[BlackElo "1898"]
[Result "1-0"]
[Round "11"]
[TimeControl "180+1"]
[Date "2023.11.07"]
[WhiteClock "0:00:34"]
[BlackClock "0:00:56"]
[Board "134"]

1. d4 {[%clk 0:03:00]}  Nf6 {[%clk 0:02:59]} 2. Bf4 {[%clk 0:03:01]}  g6 {[%clk 0:02:56]} 3. Nc3 {[%clk 0:03:00]}  d5 {[%clk 0:02:55]} 4. e3 {[%clk 0:03:00]}  c6 {[%clk 0:02:54]} 5. Qd2 {[%clk 0:02:48]}  Bg7 {[%clk 0:02:52]} 6. f3 {[%clk 0:02:44]}  Bf5 {[%clk 0:02:52]} 7. g4 {[%clk 0:02:41]}  Bd7 {[%clk 0:02:48]} 8. h4 {[%clk 0:02:41]}  h5 {[%clk 0:02:42]} 9. g5 {[%clk 0:02:36]}  Ng8 {[%clk 0:02:35]} 10. Be5 {[%clk 0:02:31]}  Bxe5 {[%clk 0:02:32]} 11. dxe5 {[%clk 0:02:31]}  Bf5 {[%clk 0:02:29]} 12. O-O-O {[%clk 0:02:26]}  Qa5 {[%clk 0:02:23]} 13. Kb1 {[%clk 0:02:00]}  e6 {[%clk 0:02:22]} 14. e4 {[%clk 0:01:28]}  dxe4 {[%clk 0:02:19]} 15. fxe4 {[%clk 0:01:26]}  Bg4 {[%clk 0:02:19]} 16. Be2 {[%clk 0:01:20]}  Bxe2 {[%clk 0:02:17]} 17. Ngxe2 {[%clk 0:01:21]}  Ne7 {[%clk 0:02:10]} 18. Rhf1 {[%clk 0:01:04]}  O-O {[%clk 0:02:09]} 19. Nd5 {[%clk 0:00:51]}  Qxd2 {[%clk 0:02:04]} 20. Nxe7+ {[%clk 0:00:50]}  Kg7 {[%clk 0:01:58]} 21. Rxd2 {[%clk 0:00:51]}  Na6 {[%clk 0:01:52]} 22. Rfd1 {[%clk 0:00:46]}  Rfe8 {[%clk 0:01:48]} 23. Rd7 {[%clk 0:00:46]}  Nc5 {[%clk 0:01:47]} 24. Rc7 {[%clk 0:00:46]}  Nxe4 {[%clk 0:01:41]} 25. Nf4 {[%clk 0:00:40]}  Rad8 {[%clk 0:01:33]} 26. Rxd8 {[%clk 0:00:34]}  Rxd8 {[%clk 0:01:33]} 27. Nxe6+ {[%clk 0:00:32]}  fxe6 {[%clk 0:01:25]} 28. Nxc6+ {[%clk 0:00:33]}  Kf8 {[%clk 0:01:16]} 29. Nxd8 {[%clk 0:00:34]}  Nd2+ {[%clk 0:01:09]} 30. Kc1 {[%clk 0:00:34]}  Nf3 {[%clk 0:01:09]} 31. Nxe6+ {[%clk 0:00:34]}  Ke8 {[%clk 0:01:05]} 32. Ng7+ {[%clk 0:00:34]}  Kd8 {[%clk 0:01:04]} 33. Rxb7 {[%clk 0:00:34]}  Nxh4 {[%clk 0:01:03]} 34. e6 {[%clk 0:00:35]}  Nf5 {[%clk 0:01:01]} 35. Nxf5 {[%clk 0:00:33]}  gxf5 {[%clk 0:01:00]} 36. e7+ {[%clk 0:00:33]}  Ke8 {[%clk 0:00:59]} 37. g6 {[%clk 0:00:34]}  h4 {[%clk 0:00:59]} 38. g7 {[%clk 0:00:35]}  Kf7 {[%clk 0:00:56]} 39. e8=Q+ {[%clk 0:00:34]}  Kxe8 {[%clk 0:00:56]} 40. g8=Q# {[%clk 0:00:34]} 1-0


[Site "https://www.chess.com"]

[Event "Titled Tuesday Blitz November 07 Early 2023"]
[White "Fernandez Hernandez, Gerardo"]
[Black "Gyulamiryan-koryun"]
[WhiteFideId "2207400"]
[WhiteElo "2120"]
[BlackElo "1877"]
[Result "1-0"]
[Round "11"]
[TimeControl "180+1"]
[Date "2023.11.07"]
[WhiteClock "0:00:09"]
[BlackClock "0:00:35"]
[Board "135"]

1. e4 {[%clk 0:03:00]}  e5 {[%clk 0:02:58]} 2. Nf3 {[%clk 0:03:00]}  Nc6 {[%clk 0:02:58]} 3. d4 {[%clk 0:03:00]}  exd4 {[%clk 0:02:56]} 4. Bc4 {[%clk 0:03:01]}  Nf6 {[%clk 0:02:55]} 5. e5 {[%clk 0:03:00]}  d5 {[%clk 0:02:55]} 6. Bb5 {[%clk 0:03:01]}  Ne4 {[%clk 0:02:54]} 7. Nxd4 {[%clk 0:02:59]}  Bd7 {[%clk 0:02:55]} 8. Bxc6 {[%clk 0:02:59]}  bxc6 {[%clk 0:02:55]} 9. O-O {[%clk 0:02:56]}  Bc5 {[%clk 0:02:55]} 10. Be3 {[%clk 0:02:55]}  Bb6 {[%clk 0:02:54]} 11. f3 {[%clk 0:02:51]}  Ng5 {[%clk 0:02:54]} 12. f4 {[%clk 0:02:51]}  Ne4 {[%clk 0:02:54]} 13. Nd2 {[%clk 0:02:47]}  Nxd2 {[%clk 0:02:52]} 14. Qxd2 {[%clk 0:02:48]}  c5 {[%clk 0:02:52]} 15. Nf3 {[%clk 0:02:44]}  d4 {[%clk 0:02:52]} 16. Bf2 {[%clk 0:02:43]}  Bc6 {[%clk 0:02:51]} 17. Bh4 {[%clk 0:02:30]}  Qd7 {[%clk 0:02:42]} 18. Rae1 {[%clk 0:02:01]}  O-O {[%clk 0:02:39]} 19. Ng5 {[%clk 0:01:49]}  Qg4 {[%clk 0:02:33]} 20. Bg3 {[%clk 0:01:27]}  h6 {[%clk 0:02:32]} 21. Ne4 {[%clk 0:01:25]}  c4 {[%clk 0:02:24]} 22. Kh1 {[%clk 0:01:19]}  Rad8 {[%clk 0:02:19]} 23. c3 {[%clk 0:00:46]}  d3 {[%clk 0:02:15]} 24. Nf2 {[%clk 0:00:41]}  Bxf2 {[%clk 0:02:02]} 25. Rxf2 {[%clk 0:00:39]}  h5 {[%clk 0:02:00]} 26. f5 {[%clk 0:00:36]}  h4 {[%clk 0:01:55]} 27. Rf4 {[%clk 0:00:35]}  Qg5 {[%clk 0:01:41]} 28. Bxh4 {[%clk 0:00:33]}  Bxg2+ {[%clk 0:01:37]} 29. Kg1 {[%clk 0:00:24]}  Qh6 {[%clk 0:01:12]} 30. Bxd8 {[%clk 0:00:22]}  Rxd8 {[%clk 0:01:11]} 31. Kxg2 {[%clk 0:00:18]}  Qc6+ {[%clk 0:01:04]} 32. Kg1 {[%clk 0:00:14]}  Qb5 {[%clk 0:01:02]} 33. Rg4 {[%clk 0:00:12]}  Qc5+ {[%clk 0:01:01]} 34. Kh1 {[%clk 0:00:11]}  Qd5+ {[%clk 0:01:01]} 35. Rg2 {[%clk 0:00:11]}  Re8 {[%clk 0:01:00]} 36. Rg1 {[%clk 0:00:11]}  Rxe5 {[%clk 0:00:58]} 37. f6 {[%clk 0:00:11]}  Rg5 {[%clk 0:00:57]} 38. Qxg5 {[%clk 0:00:11]}  g6 {[%clk 0:00:56]} 39. Qxd5 {[%clk 0:00:10]}  Kh7 {[%clk 0:00:35]} 40. Qxf7+ {[%clk 0:00:09]} 1-0